[Event "Titled Tuesday Blitz July 6 2021"]
[White "Assaubayeva, Bibisara"]
[Black "Kalajzic, Ivan"]
[WhiteFideId "13708694"]
[BlackFideId "14506378"]
[WhiteElo "2232"]
[BlackElo "2163"]
[Result "0-1"]
[Round "02"]
[TimeControl "180+1"]
[Date "2021.07.06"]
[WhiteClock "0:00:05"]
[BlackClock "0:00:16"]

1. d4 {[%clk 0:03:00]}  Nc6 {[%clk 0:02:58]} 2. d5 {[%clk 0:02:57]}  Ne5 {[%clk 0:02:57]} 3. e4 {[%clk 0:02:57]}  e6 {[%clk 0:02:56]} 4. Nc3 {[%clk 0:02:54]}  Bc5 {[%clk 0:02:53]} 5. Bf4 {[%clk 0:02:48]}  Ng6 {[%clk 0:02:51]} 6. Bg3 {[%clk 0:02:46]}  e5 {[%clk 0:02:46]} 7. Nf3 {[%clk 0:02:34]}  d6 {[%clk 0:02:38]} 8. Bb5+ {[%clk 0:02:34]}  Bd7 {[%clk 0:02:36]} 9. Bxd7+ {[%clk 0:02:35]}  Qxd7 {[%clk 0:02:37]} 10. h4 {[%clk 0:02:22]}  h6 {[%clk 0:02:17]} 11. h5 {[%clk 0:02:18]}  N6e7 {[%clk 0:02:17]} 12. Qd2 {[%clk 0:02:00]}  Bb4 {[%clk 0:02:11]} 13. a3 {[%clk 0:01:59]}  Ba5 {[%clk 0:02:11]} 14. Ng1 {[%clk 0:01:49]}  f5 {[%clk 0:02:05]} 15. Nge2 {[%clk 0:01:32]}  Nf6 {[%clk 0:01:49]} 16. b4 {[%clk 0:01:20]}  Bb6 {[%clk 0:01:49]} 17. Bh4 {[%clk 0:00:59]}  O-O {[%clk 0:01:47]} 18. Bxf6 {[%clk 0:00:46]}  Rxf6 {[%clk 0:01:48]} 19. exf5 {[%clk 0:00:46]}  Nxf5 {[%clk 0:01:40]} 20. Ne4 {[%clk 0:00:45]}  Rf7 {[%clk 0:01:39]} 21. c3 {[%clk 0:00:37]}  Raf8 {[%clk 0:01:35]} 22. Rh3 {[%clk 0:00:26]}  c5 {[%clk 0:01:15]} 23. bxc5 {[%clk 0:00:20]}  Bxc5 {[%clk 0:01:13]} 24. Nxc5 {[%clk 0:00:10]}  dxc5 {[%clk 0:01:14]} 25. f3 {[%clk 0:00:08]}  Nd6 {[%clk 0:01:09]} 26. Qd3 {[%clk 0:00:06]}  c4 {[%clk 0:01:04]} 27. Qe3 {[%clk 0:00:06]}  b6 {[%clk 0:00:49]} 28. Ng3 {[%clk 0:00:05]}  Nf5 {[%clk 0:00:47]} 29. Nxf5 {[%clk 0:00:05]}  Qxf5 {[%clk 0:00:47]} 30. Rd1 {[%clk 0:00:05]}  Re8 {[%clk 0:00:45]} 31. Rg3 {[%clk 0:00:04]}  e4 {[%clk 0:00:43]} 32. f4 {[%clk 0:00:03]}  Qxh5 {[%clk 0:00:40]} 33. d6 {[%clk 0:00:04]}  Rd7 {[%clk 0:00:32]} 34. Rd4 {[%clk 0:00:04]}  Qh1+ {[%clk 0:00:29]} 35. Kf2 {[%clk 0:00:03]}  Qh4 {[%clk 0:00:25]} 36. Kf1 {[%clk 0:00:03]}  Red8 {[%clk 0:00:24]} 37. Kg1 {[%clk 0:00:03]}  Rxd6 {[%clk 0:00:22]} 38. Rxd6 {[%clk 0:00:03]}  Rxd6 {[%clk 0:00:23]} 39. Rh3 {[%clk 0:00:03]}  Rd1+ {[%clk 0:00:21]} 40. Kh2 {[%clk 0:00:03]}  Qe1 {[%clk 0:00:20]} 41. Qxe1 {[%clk 0:00:03]}  Rxe1 {[%clk 0:00:20]} 42. Rh5 {[%clk 0:00:04]}  Re3 {[%clk 0:00:19]} 43. Re5 {[%clk 0:00:03]}  Rxc3 {[%clk 0:00:18]} 44. Rxe4 {[%clk 0:00:04]}  b5 {[%clk 0:00:19]} 45. a4 {[%clk 0:00:03]}  a6 {[%clk 0:00:18]} 46. axb5 {[%clk 0:00:03]}  axb5 {[%clk 0:00:19]} 47. Re8+ {[%clk 0:00:03]}  Kf7 {[%clk 0:00:19]} 48. Rb8 {[%clk 0:00:04]}  Rb3 {[%clk 0:00:19]} 49. Rb7+ {[%clk 0:00:04]}  Ke6 {[%clk 0:00:19]} 50. Rxg7 {[%clk 0:00:04]}  c3 {[%clk 0:00:20]} 51. Rg6+ {[%clk 0:00:05]}  Kf5 {[%clk 0:00:19]} 52. Rxh6 {[%clk 0:00:05]}  Kxf4 {[%clk 0:00:17]} 53. Rc6 {[%clk 0:00:05]}  b4 {[%clk 0:00:17]} 54. Rc4+ {[%clk 0:00:04]}  Ke3 {[%clk 0:00:16]} 55. g4 {[%clk 0:00:05]}  Kd3 {[%clk 0:00:17]} 56. Rc7 {[%clk 0:00:04]}  c2 {[%clk 0:00:17]} 57. g5 {[%clk 0:00:04]}  Rc3 {[%clk 0:00:17]} 58. Rd7+ {[%clk 0:00:05]}  Kc4 {[%clk 0:00:16]} 0-1


[Site "https://www.chess.com"]

[Event "Titled Tuesday Blitz July 6 2021"]
[White "Bartel, Michal"]
[Black "Keymer, Vincent"]
[WhiteFideId "1119257"]
[BlackFideId "12940690"]
[WhiteElo "2271"]
[BlackElo "2474"]
[Result "0-1"]
[Round "02"]
[TimeControl "180+1"]
[Date "2021.07.06"]
[WhiteClock "0:01:33"]
[BlackClock "0:00:35"]

1. e4 {[%clk 0:03:00]}  c6 {[%clk 0:02:59]} 2. Nc3 {[%clk 0:02:56]}  d5 {[%clk 0:03:00]} 3. Nf3 {[%clk 0:02:57]}  dxe4 {[%clk 0:03:00]} 4. Nxe4 {[%clk 0:02:58]}  Nf6 {[%clk 0:03:01]} 5. Ng3 {[%clk 0:02:58]}  h5 {[%clk 0:03:00]} 6. Bc4 {[%clk 0:02:57]}  h4 {[%clk 0:02:57]} 7. Ne5 {[%clk 0:02:50]}  Qd4 {[%clk 0:02:26]} 8. Qe2 {[%clk 0:02:28]}  hxg3 {[%clk 0:02:20]} 9. Bxf7+ {[%clk 0:02:29]}  Kd8 {[%clk 0:02:18]} 10. fxg3 {[%clk 0:02:29]}  Rxh2 {[%clk 0:01:44]} 11. Rf1 {[%clk 0:02:24]}  Rxg2 {[%clk 0:01:38]} 12. Qxg2 {[%clk 0:02:23]}  Qxe5+ {[%clk 0:01:38]} 13. Qe2 {[%clk 0:02:17]}  Qxe2+ {[%clk 0:01:33]} 14. Kxe2 {[%clk 0:02:17]}  Bg4+ {[%clk 0:01:32]} 15. Ke3 {[%clk 0:02:14]}  e5 {[%clk 0:01:32]} 16. d4 {[%clk 0:02:12]}  Nbd7 {[%clk 0:01:30]} 17. c3 {[%clk 0:02:08]}  Bd6 {[%clk 0:01:24]} 18. Kf2 {[%clk 0:02:05]}  Kc7 {[%clk 0:01:21]} 19. Kg2 {[%clk 0:02:00]}  Rh8 {[%clk 0:01:20]} 20. Rf2 {[%clk 0:01:52]}  e4 {[%clk 0:01:16]} 21. Bf4 {[%clk 0:01:42]}  Bf3+ {[%clk 0:01:16]} 22. Rxf3 {[%clk 0:01:42]}  exf3+ {[%clk 0:01:17]} 23. Kxf3 {[%clk 0:01:42]}  Rf8 {[%clk 0:01:16]} 24. Be6 {[%clk 0:01:41]}  Nd5 {[%clk 0:01:15]} 25. Bxd5 {[%clk 0:01:39]}  cxd5 {[%clk 0:01:16]} 26. Kg4 {[%clk 0:01:40]}  Nf6+ {[%clk 0:01:14]} 27. Kf5 {[%clk 0:01:39]}  Nh5+ {[%clk 0:01:05]} 28. Ke6 {[%clk 0:01:39]}  Bxf4 {[%clk 0:01:01]} 29. gxf4 {[%clk 0:01:38]}  Nxf4+ {[%clk 0:01:02]} 30. Ke7 {[%clk 0:01:39]}  Rf5 {[%clk 0:00:59]} 31. Rg1 {[%clk 0:01:37]}  g5 {[%clk 0:00:59]} 32. a4 {[%clk 0:01:37]}  a5 {[%clk 0:00:59]} 33. Rh1 {[%clk 0:01:36]}  g4 {[%clk 0:00:57]} 34. Rg1 {[%clk 0:01:36]}  Rg5 {[%clk 0:00:52]} 35. Kf6 {[%clk 0:01:36]}  Rg8 {[%clk 0:00:47]} 36. Kf7 {[%clk 0:01:36]}  Rg6 {[%clk 0:00:46]} 37. Rf1 {[%clk 0:01:35]}  g3 {[%clk 0:00:44]} 38. Rxf4 {[%clk 0:01:35]}  g2 {[%clk 0:00:44]} 39. Kxg6 {[%clk 0:01:35]}  g1=Q+ {[%clk 0:00:44]} 40. Kf6 {[%clk 0:01:33]}  Qh2 {[%clk 0:00:44]} 41. Ke5 {[%clk 0:01:31]}  Qxb2 {[%clk 0:00:40]} 42. Kxd5 {[%clk 0:01:31]}  Qxc3 {[%clk 0:00:36]} 43. Rf7+ {[%clk 0:01:32]}  Kb6 {[%clk 0:00:35]} 44. Rf6+ {[%clk 0:01:32]}  Ka7 {[%clk 0:00:36]} 45. Rf3 {[%clk 0:01:33]}  Qxf3+ {[%clk 0:00:35]} 0-1


[Site "https://www.chess.com"]

[Event "Titled Tuesday Blitz July 6 2021"]
[White "Baskin, Robert"]
[Black "Terry, Renato"]
[WhiteFideId "24662402"]
[BlackFideId "3803457"]
[WhiteElo "2462"]
[BlackElo "2581"]
[Result "0-1"]
[Round "02"]
[TimeControl "180+1"]
[Date "2021.07.06"]
[WhiteClock "0:00:12"]
[BlackClock "0:01:17"]

1. d4 {[%clk 0:03:00]}  e6 {[%clk 0:03:00]} 2. c4 {[%clk 0:03:00]}  Bb4+ {[%clk 0:02:59]} 3. Nd2 {[%clk 0:02:59]}  Nf6 {[%clk 0:02:59]} 4. g3 {[%clk 0:02:58]}  O-O {[%clk 0:02:58]} 5. Bg2 {[%clk 0:02:57]}  d6 {[%clk 0:02:55]} 6. Nf3 {[%clk 0:02:56]}  a5 {[%clk 0:02:54]} 7. O-O {[%clk 0:02:55]}  Qe7 {[%clk 0:02:54]} 8. Nb1 {[%clk 0:02:50]}  a4 {[%clk 0:02:52]} 9. a3 {[%clk 0:02:47]}  Ba5 {[%clk 0:02:52]} 10. Qxa4 {[%clk 0:02:47]}  c5 {[%clk 0:02:52]} 11. dxc5 {[%clk 0:02:43]}  dxc5 {[%clk 0:02:53]} 12. Nc3 {[%clk 0:02:35]}  Nc6 {[%clk 0:02:48]} 13. Be3 {[%clk 0:02:26]}  Ng4 {[%clk 0:02:42]} 14. Bf4 {[%clk 0:02:21]}  f6 {[%clk 0:02:43]} 15. Qc2 {[%clk 0:02:11]}  g5 {[%clk 0:02:39]} 16. Bd2 {[%clk 0:02:08]}  Nd4 {[%clk 0:02:30]} 17. Nxd4 {[%clk 0:02:07]}  cxd4 {[%clk 0:02:31]} 18. Nb5 {[%clk 0:02:05]}  Bxd2 {[%clk 0:02:25]} 19. Qxd2 {[%clk 0:02:05]}  e5 {[%clk 0:02:26]} 20. h3 {[%clk 0:01:57]}  Nh6 {[%clk 0:02:25]} 21. h4 {[%clk 0:01:57]}  Be6 {[%clk 0:02:17]} 22. Rfc1 {[%clk 0:01:56]}  Ng4 {[%clk 0:02:12]} 23. hxg5 {[%clk 0:01:54]}  fxg5 {[%clk 0:02:13]} 24. f3 {[%clk 0:01:12]}  Ne3 {[%clk 0:02:11]} 25. Qb4 {[%clk 0:01:03]}  Qxb4 {[%clk 0:02:02]} 26. axb4 {[%clk 0:01:04]}  Bxc4 {[%clk 0:02:02]} 27. Nd6 {[%clk 0:01:03]}  Bxe2 {[%clk 0:02:01]} 28. Bh3 {[%clk 0:00:53]}  Rxa1 {[%clk 0:01:51]} 29. Rxa1 {[%clk 0:00:52]}  d3 {[%clk 0:01:41]} 30. Ne4 {[%clk 0:00:49]}  Bxf3 {[%clk 0:01:41]} 31. Nd2 {[%clk 0:00:44]}  g4 {[%clk 0:01:38]} 32. Bf1 {[%clk 0:00:37]}  e4 {[%clk 0:01:38]} 33. Re1 {[%clk 0:00:34]}  Nc2 {[%clk 0:01:37]} 34. Rb1 {[%clk 0:00:19]}  Nxb4 {[%clk 0:01:33]} 35. Kf2 {[%clk 0:00:12]}  Nc2 {[%clk 0:01:26]} 36. Nc4 {[%clk 0:00:12]}  b5 {[%clk 0:01:17]} 37. Ne3 {[%clk 0:00:12]}  Be2+ {[%clk 0:01:17]} 0-1


[Site "https://www.chess.com"]

[Event "Titled Tuesday Blitz July 6 2021"]
[White "Bordi, Kevin"]
[Black "Isajevsky, Anton"]
[WhiteFideId "621862"]
[BlackFideId "4142500"]
[WhiteElo "2753"]
[BlackElo "2510"]
[Result "1-0"]
[Round "02"]
[TimeControl "180+1"]
[Date "2021.07.06"]
[WhiteClock "0:00:15"]
[BlackClock "0:00:07"]

1. d4 {[%clk 0:03:00]}  d5 {[%clk 0:03:00]} 2. Bf4 {[%clk 0:03:00]}  Nf6 {[%clk 0:02:59]} 3. e3 {[%clk 0:03:01]}  e6 {[%clk 0:02:59]} 4. Nf3 {[%clk 0:03:00]}  Bd6 {[%clk 0:02:59]} 5. Bg3 {[%clk 0:03:00]}  b6 {[%clk 0:02:57]} 6. c3 {[%clk 0:03:00]}  O-O {[%clk 0:02:56]} 7. Ne5 {[%clk 0:02:59]}  c5 {[%clk 0:02:42]} 8. f4 {[%clk 0:02:56]}  Ne4 {[%clk 0:02:38]} 9. Nd2 {[%clk 0:02:53]}  f5 {[%clk 0:02:28]} 10. Nxe4 {[%clk 0:02:49]}  fxe4 {[%clk 0:02:28]} 11. Qg4 {[%clk 0:02:45]}  Qe8 {[%clk 0:01:47]} 12. Be2 {[%clk 0:02:16]}  Ba6 {[%clk 0:01:45]} 13. Bxa6 {[%clk 0:02:07]}  Nxa6 {[%clk 0:01:45]} 14. O-O {[%clk 0:02:08]}  Nc7 {[%clk 0:01:25]} 15. f5 {[%clk 0:02:04]}  exf5 {[%clk 0:01:25]} 16. Rxf5 {[%clk 0:02:05]}  Rxf5 {[%clk 0:01:25]} 17. Qxf5 {[%clk 0:02:05]}  Qe6 {[%clk 0:01:24]} 18. Rf1 {[%clk 0:01:50]}  cxd4 {[%clk 0:00:47]} 19. cxd4 {[%clk 0:01:47]}  Qxf5 {[%clk 0:00:40]} 20. Rxf5 {[%clk 0:01:46]}  Rc8 {[%clk 0:00:39]} 21. Nc6 {[%clk 0:01:36]}  Nb5 {[%clk 0:00:27]} 22. Bxd6 {[%clk 0:01:06]}  Nxd6 {[%clk 0:00:27]} 23. Ne7+ {[%clk 0:01:05]}  Kh8 {[%clk 0:00:27]} 24. Nxc8 {[%clk 0:00:49]}  Nxf5 {[%clk 0:00:26]} 25. Kf2 {[%clk 0:00:50]}  Kg8 {[%clk 0:00:23]} 26. Nxa7 {[%clk 0:00:42]}  Nd6 {[%clk 0:00:20]} 27. Nc6 {[%clk 0:00:42]}  Kf7 {[%clk 0:00:21]} 28. b3 {[%clk 0:00:37]}  Ke6 {[%clk 0:00:20]} 29. a4 {[%clk 0:00:37]}  g5 {[%clk 0:00:17]} 30. Nb4 {[%clk 0:00:31]}  h5 {[%clk 0:00:14]} 31. Kg3 {[%clk 0:00:30]}  Nf5+ {[%clk 0:00:14]} 32. Kf2 {[%clk 0:00:30]}  Nd6 {[%clk 0:00:14]} 33. Na2 {[%clk 0:00:29]}  Nb7 {[%clk 0:00:11]} 34. b4 {[%clk 0:00:26]}  Nd6 {[%clk 0:00:11]} 35. Nc3 {[%clk 0:00:24]}  Nc4 {[%clk 0:00:11]} 36. Ke2 {[%clk 0:00:20]}  Kd6 {[%clk 0:00:10]} 37. Nb5+ {[%clk 0:00:20]}  Ke6 {[%clk 0:00:10]} 38. Nc3 {[%clk 0:00:20]}  Kd6 {[%clk 0:00:10]} 39. Nb1 {[%clk 0:00:20]}  Nb2 {[%clk 0:00:08]} 40. a5 {[%clk 0:00:15]}  bxa5 {[%clk 0:00:03]} 41. bxa5 {[%clk 0:00:16]}  Nc4 {[%clk 0:00:04]} 42. a6 {[%clk 0:00:16]}  Kc6 {[%clk 0:00:03]} 43. Nc3 {[%clk 0:00:17]}  Nb6 {[%clk 0:00:03]} 44. h4 {[%clk 0:00:16]}  gxh4 {[%clk 0:00:02]} 45. Kf2 {[%clk 0:00:17]}  Nc4 {[%clk 0:00:02]} 46. a7 {[%clk 0:00:15]}  Nb6 {[%clk 0:00:02]} 47. Kg1 {[%clk 0:00:14]}  Kb7 {[%clk 0:00:03]} 48. a8=Q+ {[%clk 0:00:13]}  Kxa8 {[%clk 0:00:03]} 49. Kh2 {[%clk 0:00:14]}  Kb7 {[%clk 0:00:03]} 50. Kh3 {[%clk 0:00:15]}  Kc6 {[%clk 0:00:04]} 51. Kxh4 {[%clk 0:00:15]}  Nc4 {[%clk 0:00:04]} 52. Nd1 {[%clk 0:00:15]}  Kd6 {[%clk 0:00:04]} 53. Kxh5 {[%clk 0:00:16]}  Ke6 {[%clk 0:00:05]} 54. g4 {[%clk 0:00:16]}  Kf6 {[%clk 0:00:06]} 55. Kh6 {[%clk 0:00:17]}  Kf7 {[%clk 0:00:05]} 56. g5 {[%clk 0:00:17]}  Nd6 {[%clk 0:00:06]} 57. Kh7 {[%clk 0:00:14]}  Nf5 {[%clk 0:00:05]} 58. g6+ {[%clk 0:00:13]}  Kf6 {[%clk 0:00:05]} 59. Nf2 {[%clk 0:00:14]}  Kg5 {[%clk 0:00:03]} 60. g7 {[%clk 0:00:12]}  Nxg7 {[%clk 0:00:03]} 61. Kxg7 {[%clk 0:00:12]}  Kh4 {[%clk 0:00:04]} 62. Kf6 {[%clk 0:00:12]}  Kg3 {[%clk 0:00:05]} 63. Nd1 {[%clk 0:00:12]}  Kf3 {[%clk 0:00:06]} 64. Ke5 {[%clk 0:00:13]}  Ke2 {[%clk 0:00:06]} 65. Kxd5 {[%clk 0:00:13]}  Kd2 {[%clk 0:00:07]} 66. Kxe4 {[%clk 0:00:14]}  Ke2 {[%clk 0:00:07]} 67. d5 {[%clk 0:00:15]} 1-0


[Site "https://www.chess.com"]

[Event "Titled Tuesday Blitz July 6 2021"]
[White "Chernomordik, Pavel"]
[Black "Dobrov, Vladimir"]
[WhiteFideId "2804530"]
[BlackFideId "4136594"]
[WhiteElo "2273"]
[BlackElo "2614"]
[Result "0-1"]
[Round "02"]
[TimeControl "180+1"]
[Date "2021.07.06"]
[WhiteClock "0:00:02"]
[BlackClock "0:00:13"]

1. e4 {[%clk 0:03:00]}  c5 {[%clk 0:02:59]} 2. Nc3 {[%clk 0:03:00]}  Nc6 {[%clk 0:02:59]} 3. Bb5 {[%clk 0:02:59]}  Nd4 {[%clk 0:02:59]} 4. Bc4 {[%clk 0:02:59]}  g6 {[%clk 0:02:59]} 5. Nge2 {[%clk 0:02:58]}  Bg7 {[%clk 0:03:00]} 6. Nxd4 {[%clk 0:02:57]}  cxd4 {[%clk 0:03:00]} 7. Qf3 {[%clk 0:02:57]}  f5 {[%clk 0:03:01]} 8. Ne2 {[%clk 0:02:39]}  Qa5 {[%clk 0:03:00]} 9. O-O {[%clk 0:02:28]}  e6 {[%clk 0:02:59]} 10. d3 {[%clk 0:02:25]}  Ne7 {[%clk 0:02:59]} 11. c3 {[%clk 0:02:16]}  O-O {[%clk 0:02:55]} 12. Bb3 {[%clk 0:02:06]}  fxe4 {[%clk 0:02:50]} 13. Qxe4 {[%clk 0:02:05]}  d5 {[%clk 0:02:49]} 14. Qg4 {[%clk 0:01:59]}  e5 {[%clk 0:02:44]} 15. Qg5 {[%clk 0:01:53]}  Bf6 {[%clk 0:02:42]} 16. Qd2 {[%clk 0:01:52]}  dxc3 {[%clk 0:02:40]} 17. bxc3 {[%clk 0:01:50]}  Be6 {[%clk 0:02:26]} 18. f4 {[%clk 0:01:42]}  Qb6+ {[%clk 0:02:06]} 19. Kh1 {[%clk 0:01:41]}  Bg7 {[%clk 0:02:00]} 20. Ba3 {[%clk 0:01:38]}  Rfe8 {[%clk 0:01:38]} 21. fxe5 {[%clk 0:01:36]}  Bxe5 {[%clk 0:01:38]} 22. Nf4 {[%clk 0:01:29]}  Bf7 {[%clk 0:01:38]} 23. Bxe7 {[%clk 0:01:27]}  Rxe7 {[%clk 0:01:38]} 24. Nxd5 {[%clk 0:01:26]}  Bxd5 {[%clk 0:01:37]} 25. Bxd5+ {[%clk 0:01:25]}  Kg7 {[%clk 0:01:38]} 26. d4 {[%clk 0:01:24]}  Bc7 {[%clk 0:01:20]} 27. Qg5 {[%clk 0:01:16]}  Rae8 {[%clk 0:01:18]} 28. Bb3 {[%clk 0:01:09]}  Qd6 {[%clk 0:01:16]} 29. g3 {[%clk 0:01:05]}  Qc6+ {[%clk 0:01:14]} 30. Qd5 {[%clk 0:01:01]}  Qxc3 {[%clk 0:01:06]} 31. Rf7+ {[%clk 0:00:58]}  Kh6 {[%clk 0:01:06]} 32. Raf1 {[%clk 0:00:54]}  Bb6 {[%clk 0:00:45]} 33. Rxe7 {[%clk 0:00:47]}  Rxe7 {[%clk 0:00:46]} 34. Qg8 {[%clk 0:00:43]}  Qxd4 {[%clk 0:00:30]} 35. Qf8+ {[%clk 0:00:41]}  Rg7 {[%clk 0:00:30]} 36. Qf4+ {[%clk 0:00:28]}  Qxf4 {[%clk 0:00:30]} 37. Rxf4 {[%clk 0:00:28]}  Rd7 {[%clk 0:00:28]} 38. Kg2 {[%clk 0:00:22]}  Kg7 {[%clk 0:00:28]} 39. h4 {[%clk 0:00:21]}  Bc5 {[%clk 0:00:28]} 40. Rc4 {[%clk 0:00:19]}  b6 {[%clk 0:00:28]} 41. Rc2 {[%clk 0:00:19]}  Rd3 {[%clk 0:00:27]} 42. Re2 {[%clk 0:00:15]}  Bd6 {[%clk 0:00:27]} 43. g4 {[%clk 0:00:14]}  Rg3+ {[%clk 0:00:27]} 44. Kf2 {[%clk 0:00:14]}  Rxg4 {[%clk 0:00:28]} 45. Kf3 {[%clk 0:00:12]}  Rxh4 {[%clk 0:00:27]} 46. Rd2 {[%clk 0:00:11]}  Rf4+ {[%clk 0:00:24]} 47. Ke3 {[%clk 0:00:11]}  Rf6 {[%clk 0:00:25]} 48. Ke4 {[%clk 0:00:11]}  h5 {[%clk 0:00:24]} 49. Kd5 {[%clk 0:00:09]}  Bc5 {[%clk 0:00:24]} 50. Re2 {[%clk 0:00:08]}  g5 {[%clk 0:00:24]} 51. Re5 {[%clk 0:00:07]}  Rd6+ {[%clk 0:00:21]} 52. Ke4 {[%clk 0:00:06]}  Kg6 {[%clk 0:00:15]} 53. Re8 {[%clk 0:00:05]}  g4 {[%clk 0:00:13]} 54. Rg8+ {[%clk 0:00:04]}  Kf6 {[%clk 0:00:14]} 55. Rf8+ {[%clk 0:00:03]}  Kg5 {[%clk 0:00:14]} 56. Rf5+ {[%clk 0:00:01]}  Kh4 {[%clk 0:00:13]} 57. Bf7 {[%clk 0:00:02]}  Rh6 {[%clk 0:00:13]} 0-1


[Site "https://www.chess.com"]

[Event "Titled Tuesday Blitz July 6 2021"]
[White "Ciorgovean, Iustin"]
[Black "Riazantsev, Alexander"]
[WhiteFideId "1242911"]
[BlackFideId "4125029"]
[WhiteElo "2075"]
[BlackElo "2497"]
[Result "0-1"]
[Round "02"]
[TimeControl "180+1"]
[Date "2021.07.06"]
[WhiteClock "0:00:33"]
[BlackClock "0:00:15"]

1. d4 {[%clk 0:03:00]}  d5 {[%clk 0:02:58]} 2. c4 {[%clk 0:03:01]}  c6 {[%clk 0:02:58]} 3. Nf3 {[%clk 0:03:01]}  dxc4 {[%clk 0:02:59]} 4. e3 {[%clk 0:03:01]}  Be6 {[%clk 0:02:59]} 5. Be2 {[%clk 0:02:59]}  Nf6 {[%clk 0:02:58]} 6. O-O {[%clk 0:03:00]}  g6 {[%clk 0:02:56]} 7. Nbd2 {[%clk 0:02:58]}  b5 {[%clk 0:02:50]} 8. Qc2 {[%clk 0:02:55]}  Bh6 {[%clk 0:02:48]} 9. b3 {[%clk 0:02:51]}  cxb3 {[%clk 0:02:42]} 10. axb3 {[%clk 0:02:51]}  a5 {[%clk 0:02:35]} 11. Ne5 {[%clk 0:02:45]}  O-O {[%clk 0:02:29]} 12. Nxc6 {[%clk 0:02:36]}  Nxc6 {[%clk 0:02:29]} 13. Qxc6 {[%clk 0:02:37]}  Bd7 {[%clk 0:02:17]} 14. Qc5 {[%clk 0:02:23]}  Rc8 {[%clk 0:02:13]} 15. Qa3 {[%clk 0:02:22]}  Nd5 {[%clk 0:02:09]} 16. Qxa5 {[%clk 0:02:13]}  Qxa5 {[%clk 0:02:00]} 17. Rxa5 {[%clk 0:02:14]}  Nxe3 {[%clk 0:02:00]} 18. Nf3 {[%clk 0:01:41]}  Nf5 {[%clk 0:01:45]} 19. Bxh6 {[%clk 0:01:38]}  Nxh6 {[%clk 0:01:46]} 20. Bxb5 {[%clk 0:01:37]}  Bxb5 {[%clk 0:01:39]} 21. Rxb5 {[%clk 0:01:36]}  Nf5 {[%clk 0:01:39]} 22. Rd1 {[%clk 0:01:34]}  Rc2 {[%clk 0:01:27]} 23. h3 {[%clk 0:01:29]}  Rb2 {[%clk 0:01:26]} 24. d5 {[%clk 0:01:22]}  Rc8 {[%clk 0:01:24]} 25. Rd2 {[%clk 0:01:13]}  Rxd2 {[%clk 0:01:10]} 26. Nxd2 {[%clk 0:01:14]}  Nd6 {[%clk 0:01:11]} 27. Rb4 {[%clk 0:01:09]}  Rc1+ {[%clk 0:01:11]} 28. Kh2 {[%clk 0:01:08]}  Rc2 {[%clk 0:01:11]} 29. Ne4 {[%clk 0:01:08]}  Nxe4 {[%clk 0:01:01]} 30. Rxe4 {[%clk 0:01:09]}  Kf8 {[%clk 0:01:01]} 31. Kg3 {[%clk 0:01:07]}  Rd2 {[%clk 0:00:57]} 32. Re1 {[%clk 0:00:57]}  Rd3+ {[%clk 0:00:56]} 33. Re3 {[%clk 0:00:56]}  Rxd5 {[%clk 0:00:56]} 34. b4 {[%clk 0:00:56]}  Rb5 {[%clk 0:00:56]} 35. Rb3 {[%clk 0:00:57]}  e5 {[%clk 0:00:54]} 36. Kf3 {[%clk 0:00:57]}  Ke7 {[%clk 0:00:54]} 37. Ke4 {[%clk 0:00:57]}  Ke6 {[%clk 0:00:53]} 38. Kd3 {[%clk 0:00:56]}  Kd5 {[%clk 0:00:53]} 39. Kc3 {[%clk 0:00:57]}  Rb7 {[%clk 0:00:47]} 40. Ra3 {[%clk 0:00:57]}  f5 {[%clk 0:00:39]} 41. Ra5+ {[%clk 0:00:56]}  Ke4 {[%clk 0:00:40]} 42. b5 {[%clk 0:00:54]}  Rc7+ {[%clk 0:00:31]} 43. Kb4 {[%clk 0:00:54]}  Rc2 {[%clk 0:00:30]} 44. b6 {[%clk 0:00:54]}  Rxf2 {[%clk 0:00:22]} 45. Rb5 {[%clk 0:00:55]}  Rb2+ {[%clk 0:00:18]} 46. Ka4 {[%clk 0:00:48]}  Ra2+ {[%clk 0:00:18]} 47. Kb4 {[%clk 0:00:46]}  Ra8 {[%clk 0:00:18]} 48. b7 {[%clk 0:00:42]}  Rb8 {[%clk 0:00:18]} 49. Ka5 {[%clk 0:00:43]}  Kf4 {[%clk 0:00:13]} 50. Kb6 {[%clk 0:00:36]}  e4 {[%clk 0:00:14]} 51. Ka7 {[%clk 0:00:37]}  Rf8 {[%clk 0:00:13]} 52. b8=Q+ {[%clk 0:00:34]}  Rxb8 {[%clk 0:00:13]} 53. Rxb8 {[%clk 0:00:34]}  Kg3 {[%clk 0:00:14]} 54. Rb2 {[%clk 0:00:33]}  f4 {[%clk 0:00:14]} 55. Kb6 {[%clk 0:00:33]}  f3 {[%clk 0:00:14]} 56. gxf3 {[%clk 0:00:33]}  exf3 {[%clk 0:00:14]} 57. Kc5 {[%clk 0:00:34]}  f2 {[%clk 0:00:15]} 58. Rb1 {[%clk 0:00:33]}  Kxh3 {[%clk 0:00:15]} 0-1


[Site "https://www.chess.com"]

[Event "Titled Tuesday Blitz July 6 2021"]
[White "Dang, Hoang Son"]
[Black "Deviprasath, Sharvesh"]
[WhiteFideId "12402435"]
[BlackFideId "30938228"]
[WhiteElo "2248"]
[BlackElo "2102"]
[Result "1-0"]
[Round "02"]
[TimeControl "180+1"]
[Date "2021.07.06"]
[WhiteClock "0:00:52"]
[BlackClock "0:00:01"]

1. d4 {[%clk 0:02:59]}  Nf6 {[%clk 0:02:59]} 2. c4 {[%clk 0:02:57]}  g6 {[%clk 0:02:59]} 3. Nc3 {[%clk 0:02:56]}  Bg7 {[%clk 0:02:58]} 4. e4 {[%clk 0:02:57]}  d6 {[%clk 0:02:55]} 5. Nf3 {[%clk 0:02:57]}  O-O {[%clk 0:02:51]} 6. Be2 {[%clk 0:02:57]}  Nbd7 {[%clk 0:02:45]} 7. O-O {[%clk 0:02:57]}  e5 {[%clk 0:02:45]} 8. dxe5 {[%clk 0:02:51]}  dxe5 {[%clk 0:02:46]} 9. Be3 {[%clk 0:02:43]}  c6 {[%clk 0:02:43]} 10. h3 {[%clk 0:02:43]}  Nh5 {[%clk 0:02:36]} 11. Qd6 {[%clk 0:02:32]}  Nf4 {[%clk 0:02:15]} 12. Rfd1 {[%clk 0:02:21]}  Re8 {[%clk 0:02:03]} 13. Bxf4 {[%clk 0:02:19]}  exf4 {[%clk 0:02:01]} 14. Qxf4 {[%clk 0:02:19]}  Qe7 {[%clk 0:02:00]} 15. Rac1 {[%clk 0:02:09]}  Nc5 {[%clk 0:01:56]} 16. e5 {[%clk 0:02:03]}  Bf5 {[%clk 0:01:42]} 17. g4 {[%clk 0:01:42]}  Bc8 {[%clk 0:01:28]} 18. Bf1 {[%clk 0:01:33]}  Ne6 {[%clk 0:01:20]} 19. Qe3 {[%clk 0:01:31]}  Nc5 {[%clk 0:00:43]} 20. b4 {[%clk 0:01:25]}  Nd7 {[%clk 0:00:39]} 21. c5 {[%clk 0:01:24]}  Nxe5 {[%clk 0:00:30]} 22. Nxe5 {[%clk 0:01:22]}  Bxe5 {[%clk 0:00:31]} 23. Ne4 {[%clk 0:01:12]}  f5 {[%clk 0:00:19]} 24. Nd6 {[%clk 0:01:08]}  Bxd6 {[%clk 0:00:15]} 25. cxd6 {[%clk 0:01:09]}  Qxe3 {[%clk 0:00:16]} 26. fxe3 {[%clk 0:01:09]}  Bd7 {[%clk 0:00:15]} 27. gxf5 {[%clk 0:01:08]}  gxf5 {[%clk 0:00:16]} 28. Bc4+ {[%clk 0:01:08]}  Kh8 {[%clk 0:00:15]} 29. Kf2 {[%clk 0:01:08]}  Re5 {[%clk 0:00:05]} 30. Rd4 {[%clk 0:01:07]}  Rd8 {[%clk 0:00:05]} 31. Rc3 {[%clk 0:01:08]}  Be6 {[%clk 0:00:05]} 32. Be2 {[%clk 0:01:01]}  Bd5 {[%clk 0:00:03]} 33. b5 {[%clk 0:00:52]}  Rxd6 {[%clk 0:00:03]} 34. Ra3 {[%clk 0:00:52]}  cxb5 {[%clk 0:00:01]} 35. Rxa7 {[%clk 0:00:52]} 1-0


[Site "https://www.chess.com"]